bitfinex-derivatives/quotes_ETHF0:USTF0_20240922
["timestamp","ask_amount","ask_price","bid_price","bid_amount"]
[1726995963074,0.38564,2592.7,2592.5,0.6799]
[1726995963271,0.38565,2592.6,2592.5,0.6799]
[1726995963471,3.39565,2592.6,2592.5,0.3085]
[1726995963679,4.24325,2592.6,2592.5,0.3085]
[1726995963871,4.24325,2592.6,2592.5,0.6965]
[1726995965678,4.24325,2592.6,2592.5,0.3085]
[1726995968078,4.24325,2592.6,2592.5,0.7116]
[1726995970784,14.21738,2592.6,2592.5,1e-05]
[1726995971186,0.38572,2592.1,2592.0,1.1708]
[1726995971484,3.59352,2592.1,2592.0,1.1708]
[1726995971683,3.59352,2592.1,2592.0,0.3949]
[1726995972786,0.38574,2592.0,2591.9,3.09921287]
[1726995973082,3.59352,2592.1,2592.0,0.01036]
[1726995973287,7.45112,2592.1,2592.0,0.01036]
[1726995974684,7.45112,2592.1,2592.0,0.31896]
[1726995974984,16.46112,2592.1,2591.4,3.45821287]
[1726995975187,6.43859839,2591.4,2591.1,0.3858]
[1726995975388,3.2078,2591.2,2591.1,0.3858]
[1726995976885,3.2078,2591.2,2591.1,0.7644]
[1726995978379,3.2078,2591.2,2591.1,1.1862]
[1726995978576,7.067,2591.2,2591.1,1.1862]
[1726995978780,3.2078,2591.2,2591.1,1.1862]
[1726995980786,3.2078,2591.2,2591.1,0.8004]
[1726995983986,7.067,2591.2,2591.1,0.8004]
[1726995984188,3.2078,2591.2,2591.1,0.8004]
[1726995984696,7.067,2591.2,2591.1,0.8004]
[1726995984898,7.45286,2591.2,2591.1,0.8004]
[1726995985393,7.85426,2591.2,2591.1,0.8004]
[1726995985593,7.85426,2591.2,2591.1,0.4917]
[1726995985594,13.85426,2591.2,2591.1,0.4917]
[1726995985798,16.4784,2591.2,2590.6,1.1457]
[1726995985993,3.2078,2590.7,2590.6,1.1457]
[1726995987493,3.2078,2590.7,2590.6,1.2517]
[1726995990798,3.2078,2590.7,2590.6,0.4777]
[1726995990799,3.59373,2590.7,2590.6,0.4777]
[1726995991002,6.60373,2590.7,2590.6,0.106]
[1726995991194,10.46373,2590.7,2590.6,0.106]
[1726995991897,7.0678,2590.7,2590.6,0.106]
[1726995992092,3.2078,2590.7,2590.6,0.106]
[1726995994898,3.97953,2590.7,2590.6,0.106]
[1726995995704,3.59373,2590.7,2590.6,0.106]
[1726995999507,6.60373,2590.7,2590.6,0.106]
[1726995999705,10.46373,2590.7,2590.6,0.106]
[1726996000707,11.42857,2590.7,2590.6,0.106]
[1726996001008,10.46373,2590.7,2590.6,0.106]
[1726996003208,6.96373,2590.7,2590.6,0.106]
[1726996003811,3.2078,2590.7,2590.6,0.106]
[1726996004005,3.59373,2590.7,2590.6,0.106]
[1726996004197,6.60373,2590.7,2590.6,0.106]
[1726996006510,3.2078,2590.7,2590.6,0.106]
[1726996010208,2.6014,2590.7,2590.6,0.8909]
[1726996012611,2.6014,2590.7,2590.6,0.4997]
[1726996012813,2.98733,2590.7,2590.6,0.4997]
[1726996013819,2.6014,2590.7,2590.6,0.4997]
[1726996014807,2.98733,2590.7,2590.6,0.4997]
[1726996015009,2.6014,2590.7,2590.6,0.4997]
[1726996015404,2.98733,2590.7,2590.6,0.4997]
[1726996016314,2.6014,2590.7,2590.6,0.4997]
[1726996016713,2.98733,2590.7,2590.6,0.4997]
[1726996016919,2.6014,2590.7,2590.6,0.4997]
[1726996017118,2.98733,2590.7,2590.6,0.4997]
[1726996018319,12.84733,2590.7,2590.6,0.106]
[1726996018518,17.68197,2590.7,2590.6,0.106]
[1726996023230,10.71713,2590.7,2590.6,0.106]
[1726996023819,16.71713,2590.7,2590.6,0.106]
[1726996024129,10.71713,2590.7,2590.6,0.106]
[1726996025818,7.53313,2590.7,2590.6,0.106]
[1726996026017,10.43043,2590.7,2590.6,0.106]
[1726996026226,2.98733,2590.7,2590.6,0.106]
[1726996026427,2.6014,2590.7,2590.6,0.106]
[1726996031524,2.6014,2590.7,2590.6,3.966]
[1726996031934,2.6014,2590.7,2590.6,5.1045]
[1726996032322,2.6014,2590.7,2590.6,1.2445]
[1726996033731,2.6014,2590.7,2590.6,5.1045]
[1726996037326,2.6014,2590.7,2590.6,1.2445]
[1726996037532,2.6014,2590.7,2590.6,5.1045]
[1726996038034,2.6014,2590.7,2590.6,6.11159802]
[1726996038331,2.6014,2590.7,2590.6,6.49754802]
[1726996038538,2.6014,2590.7,2590.6,8.46112173]
[1726996040134,2.6014,2590.7,2590.6,6.95047469]
[1726996040931,2.6014,2590.7,2590.6,3.09047469]
[1726996041132,2.6014,2590.7,2590.6,7.9618584]
[1726996041437,2.6014,2590.7,2590.6,5.49045]
[1726996042835,2.6014,2590.7,2590.6,1.2445]
[1726996043531,2.6014,2590.7,2590.6,1.63045]
[1726996043728,2.6014,2590.7,2590.6,1.2445]
[1726996043937,2.6014,2590.7,2590.6,1.63045]
[1726996044139,2.6014,2590.7,2590.6,1.2445]
[1726996044332,2.98733,2590.7,2590.6,1.2445]
[1726996044842,2.6014,2590.7,2590.6,1.2445]
[1726996052440,2.6014,2590.7,2590.6,1.63045]
[1726996052743,2.6014,2590.7,2590.6,6.50183371]
[1726996052944,2.6014,2590.7,2590.6,5.49045]
[1726996053537,2.6014,2590.7,2590.6,6.50183371]
[1726996055746,3.3864,2591.3,2590.6,17.07818852]
[1726996055747,3.2078,2591.0,2590.6,17.07818852]
[1726996056046,3.2078,2591.0,2590.9,0.3859]
[1726996056243,3.2078,2591.0,2590.9,1.39711402]
[1726996056547,3.2078,2591.0,2590.9,7.09796921]
[1726996056749,3.2078,2591.0,2590.9,7.09796926]
[1726996057245,3.2078,2591.0,2590.9,5.64521402]
[1726996057949,3.2078,2591.0,2590.9,5.75181402]
[1726996060051,3.2078,2591.0,2590.9,7.20395427]
[1726996060244,3.2078,2591.0,2590.9,5.75181402]
[1726996062150,3.2078,2591.2,2590.9,5.75181402]
[1726996062347,3.2078,2591.2,2591.0,0.7356]
[1726996062943,3.59366,2591.2,2591.0,0.7356]
[1726996065749,3.2078,2591.2,2591.0,0.7356]
[1726996068344,0.3745,2591.1,2591.0,0.7356]
[1726996071046,2.15037,2591.1,2590.9,0.1066]
[1726996071449,1.7645,2591.1,2590.9,0.1066]
[1726996075046,1.7645,2591.1,2590.8,1.14161]
[1726996075246,1.7645,2591.1,2590.8,2.15282402]
[1726996075653,1.7645,2591.1,2590.8,1.14161]
[1726996076247,1.7645,2591.1,2590.8,2.15282402]
[1726996076757,1.7645,2591.1,2590.9,0.1068]
[1726996083158,0.3745,2591.1,2590.9,0.1068]
[1726996083358,0.3745,2591.1,2590.9,0.4927]
[1726996084146,0.3745,2591.1,2590.9,0.1068]
[1726996084352,3.8608,2591.2,2591.0,0.38589]
[1726996084353,3.2078,2591.2,2591.0,0.38589]
[1726996084666,3.2078,2591.2,2591.1,0.3706]
[1726996084957,3.2078,2591.2,2591.1,0.7733]
[1726996085155,3.2078,2591.2,2591.1,1.15917]
[1726996085352,3.2078,2591.2,2591.1,0.7733]
[1726996085658,3.2078,2591.2,2590.9,1.11801402]
[1726996085853,0.3657,2591.1,2590.9,1.87071402]
[1726996086357,0.3657,2591.1,2590.9,0.1068]
[1726996087759,0.3657,2591.1,2591.0,0.3668]
[1726996089755,0.3657,2591.1,2590.9,0.1068]
[1726996090753,5.35886,2591.2,2590.9,0.1068]
[1726996090754,3.583,2591.2,2590.9,0.1068]
[1726996090948,3.2078,2591.2,2591.0,0.38588]
[1726996091149,0.38582,2591.5,2591.0,1.39709402]
[1726996091358,3.2078,2591.3,2591.1,0.394]
[1726996091549,3.2078,2591.3,2591.2,0.7695]
[1726996094358,3.2078,2591.3,2591.2,0.8764]
[1726996094764,8.84284,2591.3,2591.2,0.1069]
[1726996095449,9.24194,2591.3,2591.2,0.1069]
[1726996098166,9.24194,2591.3,2590.9,1.01121402]
[1726996098167,0.38588,2591.1,2590.9,1.01121402]
[1726996098372,4.979,2591.0,2590.8,1.01121402]
[1726996098555,9.2086,2591.0,2590.4,0.09]
[1726996098756,4.5978,2590.5,2590.3,0.3921]
[1726996099265,4.5978,2590.5,2590.3,1.40331402]
[1726996099567,4.5978,2590.5,2590.3,0.3921]
[1726996101361,4.9976,2590.5,2590.3,0.3921]
[1726996102155,3.8608,2590.4,2590.1,1.01121402]
[1726996102462,3.2078,2590.2,2589.9,1.77091402]
[1726996102857,3.2078,2590.2,2589.9,0.7597]
[1726996103664,1.39,2590.0,2589.9,0.7597]
[1726996106168,0.397,2590.1,2589.9,0.7597]
[1726996107257,0.397,2590.1,2589.6,1.01121402]
[1726996107258,1.39,2590.0,2589.6,1.01121402]
[1726996107461,3.2078,2589.9,2589.8,0.7843]
[1726996118078,8.84545,2589.9,2589.8,0.7843]
[1726996118779,8.84545,2589.9,2589.8,0.3811]
[1726996119677,0.38607,2589.8,2589.6,0.3657]
[1726996120178,4.98386,2589.9,2589.6,0.3657]
[1726996120378,1.7804,2589.7,2589.1,0.09]
[1726996120572,4.5978,2589.4,2589.2,1.1463]
[1726996121388,3.2078,2589.4,2589.2,1.1463]
[1726996122282,1.39,2589.3,2589.2,1.1463]
[1726996122694,3.2078,2589.4,2589.2,1.1463]
[1726996122990,1.39,2589.3,2589.0,4.102]
[1726996123183,1.39,2589.3,2589.1,1.1498]
[1726996123378,1.7593,2589.3,2589.1,1.1498]
[1726996123994,1.39,2589.2,2589.1,1.1498]
[1726996125585,5.63856,2589.2,2588.5,7.78605]
[1726996125791,1.39,2589.0,2588.8,0.3939]
[1726996125988,4.445,2589.0,2588.8,0.3939]
[1726996126882,3.055,2589.2,2588.8,0.3939]
[1726996127082,4.445,2589.2,2588.8,0.3939]
[1726996127495,1.39,2589.2,2588.8,0.3939]
[1726996130283,1.39,2589.2,2588.8,0.78011]
[1726996131085,3.2078,2589.1,2588.8,0.78011]
[1726996131293,1.39,2589.2,2588.8,0.78011]
[1726996131790,1.77616,2589.2,2588.8,0.78011]
[1726996132196,3.2078,2589.1,2588.8,0.78011]
[1726996132381,3.2078,2589.1,2588.9,0.3862]
[1726996132587,3.2078,2589.1,2589.0,0.7929]
[1726996136390,3.2078,2589.1,2589.0,1.17909]
[1726996136590,2.6014,2589.1,2589.0,2.56909]
[1726996136801,0.27,2589.6,2589.0,12.0453]
[1726996136991,0.3777,2589.9,2589.5,0.38611]
[1726996136992,0.27,2589.9,2589.5,0.38611]
[1726996137185,0.38607,2589.8,2589.6,0.396]
[1726996137694,0.38608,2589.7,2589.6,0.396]
[1726996137895,1.77608,2589.8,2589.6,0.396]
[1726996138292,1.39,2589.8,2589.6,0.396]
[1726996139095,0.3861,2589.6,2589.1,0.47616]
[1726996139297,5.4001,2589.5,2589.1,0.78216]
[1726996139596,3.2078,2589.4,2589.1,0.78216]
[1726996139794,2.1923,2589.5,2589.1,0.78216]
[1726996139795,2.1923,2589.5,2589.1,0.7752]
[1726996139995,0.8023,2589.5,2589.1,1.16137]
[1726996140697,0.8023,2589.5,2589.1,0.7752]
[1726996140999,0.4,2589.5,2589.1,1.16136]
[1726996142401,3.2078,2589.4,2589.0,0.38619]
[1726996142592,3.2078,2589.4,2589.0,0.7464]
[1726996142898,3.2078,2589.4,2589.2,0.38615]
[1726996143291,3.2078,2589.4,2589.3,0.38614]
[1726996143494,3.2078,2589.4,2589.0,3.9542]
[1726996143694,3.2078,2589.4,2589.1,0.38616]
[1726996144812,3.59393,2589.4,2589.0,0.7464]
[1726996145297,3.59393,2589.4,2589.0,1.13258]
[1726996145616,3.2078,2589.4,2589.1,0.38617]
[1726996146494,3.2078,2589.4,2589.0,0.7464]
[1726996146699,3.2078,2589.4,2589.1,0.38617]
[1726996147000,3.2078,2589.4,2588.8,1.01121402]
[1726996147001,0.38618,2589.1,2588.8,1.01121402]
[1726996147203,0.3847,2589.0,2588.8,1.01121402]
[1726996147603,0.3847,2589.0,2588.7,5.37034402]
[1726996148598,0.3847,2589.0,2588.7,2.16254402]
[1726996150305,0.38625,2588.6,2588.5,4.58821402]
[1726996150609,3.2078,2588.6,2588.4,0.3654]
[1726996150804,0.3732,2588.5,2588.4,0.3654]
[1726996152902,0.3732,2588.5,2588.3,0.7731]
[1726996154014,0.3863,2588.3,2587.9,4.192]
[1726996154306,3.01,2588.0,2587.9,4.102]
[1726996155110,3.5917,2588.4,2587.9,4.48835]
[1726996155308,3.5917,2588.4,2588.0,1.1109]
[1726996155907,3.01,2588.3,2588.0,0.3711]
[1726996156108,3.01,2588.3,2588.0,0.7409]
[1726996158523,3.2078,2588.1,2588.0,0.7409]
[1726996159013,3.2078,2588.1,2588.0,0.3711]
[1726996160623,3.2078,2588.1,2587.7,0.38637]
[1726996160624,7.0718,2588.1,2587.7,0.38637]
[1726996160818,0.3697,2588.0,2587.8,0.3844]
[1726996162918,3.2078,2588.1,2587.9,0.38634]
[1726996163110,3.2078,2588.1,2588.0,0.38634]
[1726996163315,3.2078,2588.1,2587.9,0.38634]
[1726996163626,3.2078,2588.1,2587.9,0.38635]
[1726996164816,6.2178,2588.1,2587.8,0.3844]
[1726996165120,0.38634,2588.0,2587.8,0.3844]
[1726996165722,0.3754,2587.9,2587.8,0.3844]
[1726996166417,0.3754,2587.9,2587.6,1.12409]
[1726996166418,3.77176,2587.9,2587.6,0.7377]
[1726996166620,3.77176,2587.9,2587.7,0.3702]
[1726996167118,3.3854,2587.9,2587.7,0.3702]
[1726996168020,3.77175,2587.9,2587.7,0.3702]
[1726996168721,0.38637,2587.8,2587.7,0.3702]
[1726996168916,3.864,2587.8,2587.3,3.2078]
[1726996169115,3.864,2587.8,2587.2,4.88725]
[1726996169116,3.01,2587.4,2587.2,4.88725]
[1726996169416,3.01,2587.4,2587.2,0.78525]
[1726996169819,3.01,2587.4,2586.7,4.21901402]
[1726996170033,3.01,2587.4,2587.1,0.4]
[1726996170331,3.01,2587.4,2587.2,0.3891]
[1726996170825,3.4101,2587.4,2587.2,0.3891]
[1726996171029,3.79653,2587.4,2587.2,0.3891]
[1726996171219,3.2078,2587.3,2587.1,0.4]
[1726996171419,3.01,2587.8,2587.1,0.4]
[1726996171818,3.39637,2587.8,2587.4,0.38642]
[1726996172024,3.39637,2587.8,2587.5,0.7411]
[1726996172515,6.2178,2587.6,2587.5,0.3712]
[1726996172721,6.2178,2587.6,2587.4,0.38642]
[1726996173332,6.2178,2587.6,2587.5,0.38641]
[1726996174428,6.2178,2587.6,2587.4,0.38642]
[1726996176926,6.2178,2587.6,2587.5,0.38641]
[1726996177228,3.2078,2587.9,2587.8,0.38637]
[1726996177930,6.2178,2588.2,2588.1,0.38632]
[1726996178324,6.2178,2588.2,2588.0,0.38633]
[1726996178729,6.60411,2588.2,2587.9,0.38634]
[1726996179033,6.2178,2588.2,2588.0,0.38633]
[1726996180321,6.2178,2588.2,2588.1,0.38632]
[1726996180521,6.2178,2588.2,2588.0,0.38633]
[1726996184729,0.38633,2588.1,2587.7,1.16177]
[1726996184931,3.01,2587.9,2587.8,0.38637]
[1726996188338,3.01,2587.9,2587.7,1.16177]
[1726996189129,3.01,2587.9,2587.7,0.7754]
[1726996189333,3.39636,2587.9,2587.4,3.2078]
[1726996189535,3.39636,2587.9,2587.4,1.15882]
[1726996189536,3.01,2587.7,2587.4,1.15882]
[1726996189940,3.01,2587.7,2587.5,0.38641]
[1726996190238,3.01,2587.7,2587.4,1.15882]
[1726996190429,3.01,2587.7,2587.5,0.3864]
[1726996191035,3.01,2587.7,2587.4,1.15881]
[1726996196743,3.01,2587.7,2587.5,0.3936]
[1726996196936,3.01,2587.7,2587.5,0.78001]
[1726996198842,1.1649,2587.8,2587.5,0.78001]
[1726996199142,1.1649,2587.8,2587.6,1.01121402]
[1726996200642,3.2078,2587.9,2587.6,1.01121402]
[1726996200846,3.01,2588.1,2587.7,1.01121402]
[1726996201150,3.39633,2588.1,2587.8,0.7627]
[1726996201345,0.38635,2588.0,2587.8,0.7627]
[1726996201536,3.01,2588.1,2587.8,0.7627]
[1726996202040,3.5972,2588.2,2587.9,3.23212672]
[1726996202346,3.5972,2588.2,2587.9,1.01121402]
[1726996202347,6.99351,2588.2,2587.9,1.01121402]
[1726996202544,7.001,2588.2,2587.9,1.39755402]
[1726996203151,7.001,2588.2,2588.0,0.38634]
[1726996203448,7.001,2588.2,2587.9,1.39755402]
[1726996203647,7.001,2588.2,2588.0,0.38633]
[1726996203842,6.6072,2588.2,2588.0,0.38633]
[1726996204243,6.6072,2588.2,2588.0,1.01121402]
[1726996204551,6.6072,2588.2,2587.9,1.39755402]
[1726996205440,6.99351,2588.2,2587.9,1.39755402]
[1726996205655,6.6072,2588.2,2587.9,1.39755402]
[1726996206839,6.2178,2588.2,2588.1,0.38632]
[1726996207045,3.01,2588.2,2588.1,0.38632]
[1726996209352,3.01,2588.2,2588.0,0.3931]
[1726996209548,3.01,2588.2,2588.1,0.38632]
[1726996210747,3.01,2588.2,2588.0,0.3931]
[1726996210952,3.39631,2588.2,2588.0,0.3931]
[1726996211150,3.39631,2588.2,2588.0,0.77943]
[1726996211550,3.39631,2588.2,2587.9,0.38634]
[1726996211551,6.874,2588.2,2587.9,0.38634]
[1726996211857,3.01,2588.0,2587.9,0.38635]
[1726996213647,3.01,2588.0,2587.9,0.75045]
[1726996214241,3.01,2588.0,2587.9,1.76166402]
[1726996219347,3.01,2588.0,2587.9,2.46198254]
[1726996219559,3.3867,2588.0,2587.9,1.01121402]
[1726996219761,3.3867,2588.0,2587.9,1.39756402]
[1726996220959,3.01,2588.0,2587.9,1.39756402]
[1726996221456,3.01,2588.0,2587.9,1.01121402]
[1726996222260,3.01,2588.0,2587.8,0.75796]
[1726996224162,1.39,2587.9,2587.8,0.75796]
[1726996228063,2.774,2588.4,2587.8,12.59152]
[1726996228064,3.2078,2588.4,2587.8,12.59152]
[1726996228259,0.27,2588.8,2588.7,0.38623]
[1726996228458,1.39,2589.2,2589.1,0.38616]
[1726996228661,1.39,2589.3,2589.2,0.38615]
[1726996228961,3.6112,2589.6,2589.0,3.2078]
[1726996229161,1.39,2589.5,2589.4,0.38612]
[1726996229557,1.39,2589.5,2589.3,0.38614]
[1726996229860,1.39,2589.5,2589.3,0.38613]
[1726996230065,3.2078,2589.6,2589.4,0.3674]
[1726996238860,3.01,2589.5,2589.1,0.38616]
[1726996239062,3.01,2589.2,2589.0,0.38618]
[1726996239262,3.01,2589.2,2588.8,3.572]
[1726996239463,3.01,2588.9,2588.8,3.2078]
[1726996240264,3.01,2588.9,2588.7,0.38622]
[1726996240975,3.01,2589.1,2588.7,0.38622]
[1726996241472,3.39617,2589.1,2588.7,0.38622]
[1726996243073,3.39617,2589.1,2588.5,0.3642]
[1726996243272,3.594,2589.0,2588.5,0.3642]
[1726996243472,3.01,2588.8,2588.6,0.38623]
[1726996243977,3.39622,2588.8,2588.5,0.75045]
[1726996244170,3.01,2588.8,2588.5,0.75046]
[1726996244673,3.01,2588.6,2588.4,3.2078]
[1726996244878,3.01,2588.6,2588.4,3.59407]
[1726996245670,3.01,2588.6,2588.4,0.38627]
[1726996246575,3.2078,2588.7,2588.2,0.4005]
[1726996246766,3.2078,2588.7,2588.5,0.38626]
[1726996248174,6.98062,2588.8,2588.5,0.38626]
[1726996248473,6.98062,2588.8,2588.4,0.38627]
[1726996248885,6.5944,2588.8,2588.2,0.4005]
[1726996249281,6.98062,2588.8,2588.4,0.38626]
[1726996250287,0.38624,2588.7,2588.3,0.38628]
[1726996250579,3.3866,2588.8,2588.2,0.4005]
[1726996250785,6.98062,2588.8,2588.4,0.38627]
[1726996252288,0.38623,2588.7,2588.4,0.38627]
[1726996253382,6.98062,2588.8,2588.5,0.38626]
[1726996253883,6.98062,2588.8,2588.2,0.4005]
[1726996253884,6.98062,2588.8,2588.4,0.38626]
[1726996254287,3.3866,2588.8,2588.6,0.38625]
[1726996254486,3.3866,2588.8,2588.2,0.4005]
[1726996254691,3.3866,2588.8,2588.6,0.38624]
[1726996256692,3.3866,2588.8,2588.5,0.3649]
[1726996256890,6.98062,2588.8,2588.2,0.4005]
[1726996257092,6.98062,2588.8,2588.4,0.38627]
[1726996257387,0.38624,2588.7,2588.4,0.38627]
[1726996257898,6.5944,2588.8,2588.4,0.38627]
[1726996257899,6.98062,2588.8,2588.4,0.38627]
[1726996258199,3.77282,2588.8,2588.4,0.38627]
[1726996258401,6.98062,2588.8,2588.4,0.38627]
[1726996260597,3.01,2588.6,2588.3,0.38628]
[1726996260909,3.01,2588.6,2588.4,0.38628]
[1726996261096,3.41,2588.6,2588.3,0.38628]
[1726996262301,3.41,2588.6,2588.2,0.7654]
[1726996262504,3.41,2588.6,2588.2,0.4005]
[1726996262688,3.59407,2588.5,2588.1,0.38631]
[1726996262894,3.2078,2588.5,2588.0,1.18033]
[1726996263103,3.59407,2588.5,2588.1,0.38631]
[1726996264492,0.38628,2588.4,2588.0,1.18033]
[1726996264808,0.3822,2588.3,2588.1,0.38632]
[1726996265105,0.3822,2588.3,2588.0,1.18033]
[1726996265291,0.3822,2588.3,2588.1,0.38632]
[1726996266102,0.3822,2588.3,2588.2,0.38631]
[1726996270307,0.3822,2588.3,2588.1,0.38631]
[1726996270609,0.3822,2588.3,2588.2,0.38631]
[1726996271015,0.3822,2588.3,2588.0,0.794]
[1726996271016,0.3822,2588.3,2588.1,0.38631]
[1726996272113,0.3822,2588.3,2588.2,0.38631]
[1726996272414,3.2078,2588.5,2588.3,0.38629]
[1726996272619,3.2078,2588.5,2588.1,0.38631]
[1726996272822,1.77629,2588.4,2588.1,0.77812]
[1726996273317,1.77629,2588.4,2588.1,0.3918]
[1726996273514,1.77629,2588.4,2588.1,0.77812]
[1726996273715,1.77629,2588.4,2588.1,0.3918]
[1726996273911,1.77629,2588.4,2588.1,0.77812]
[1726996274513,1.39,2588.4,2588.1,0.77812]
[1726996274913,1.39,2588.4,2588.2,0.38631]
[1726996275423,2.54576,2588.6,2588.3,0.38629]
[1726996276315,2.54575,2588.6,2588.2,0.3863]
[1726996276516,0.38626,2588.5,2588.2,0.3863]
[1726996276715,2.1595,2588.6,2588.4,0.38627]
[1726996276917,2.1595,2588.6,2588.5,0.3868]
[1726996277118,4.6327,2588.6,2588.5,0.3868]
[1726996278125,0.3695,2588.6,2588.5,0.3868]
[1726996278316,3.59402,2588.8,2588.5,0.77306]
[1726996279720,3.2078,2588.8,2588.5,0.77305]
[1726996280023,3.59402,2588.8,2588.5,0.77306]
[1726996280224,4.98402,2588.8,2588.5,0.3868]
[1726996280522,4.98402,2588.8,2588.5,0.77306]
[1726996281916,4.98402,2588.8,2588.5,1.17666]
[1726996282111,4.98402,2588.8,2588.5,1.55246]
[1726996282315,4.5978,2588.8,2588.5,1.55246]
[1726996282512,3.2078,2588.8,2588.5,1.1662]
[1726996282713,0.3787,2589.0,2588.6,1.39]
[1726996282913,1.39,2589.2,2588.9,0.3862]
[1726996283113,1.77616,2589.2,2589.0,0.3739]
[1726996283717,0.38617,2589.1,2589.0,0.3739]
[1726996283917,0.38617,2589.2,2589.0,0.3739]
[1726996284223,0.38617,2589.1,2589.0,0.3739]
[1726996284621,3.59397,2589.2,2589.0,0.3739]
[1726996291623,3.2078,2589.2,2589.0,0.3739]
[1726996291938,3.59396,2589.2,2589.0,0.3739]
[1726996292123,3.2078,2589.2,2589.0,0.3739]
[1726996292517,6.60395,2589.3,2589.0,0.3739]
[1726996293228,6.60395,2589.3,2589.0,1.1394]
[1726996294533,3.39615,2589.3,2589.0,1.1394]
[1726996295029,3.2078,2589.2,2589.0,1.1394]
[1726996297019,3.39615,2589.3,2589.0,1.1394]
[1726996297225,3.2078,2589.2,2589.0,1.1394]
[1726996297620,3.01,2589.3,2589.0,1.52559]
[1726996297822,0.38623,2588.7,2588.2,1.10121402]
[1726996298030,1.17655,2588.6,2588.3,0.3652]
[1726996298235,3.2078,2588.5,2588.3,0.3652]
[1726996298832,3.2078,2588.5,2588.2,0.7402]
[1726996300128,3.39628,2588.4,2588.0,0.3652]
[1726996300329,3.01,2588.4,2588.0,0.3652]
[1726996301032,5.617,2588.4,2588.0,0.3652]
[1726996301234,6.00328,2588.4,2588.0,0.3652]
[1726996301532,5.617,2588.4,2588.0,0.3652]
[1726996302431,6.00329,2588.4,2588.0,0.3652]
[1726996303931,4.5978,2588.2,2588.0,0.3652]
[1726996304128,0.3675,2588.1,2588.0,0.3652]
[1726996304844,0.3675,2588.1,2588.0,1.37641402]
[1726996306036,0.3675,2588.1,2588.0,0.3652]
[1726996306739,0.3675,2588.1,2588.0,1.37641402]
[1726996307238,0.3675,2588.1,2588.0,0.3652]
[1726996308937,4.2315,2588.1,2587.9,1.01121402]
[1726996309132,0.3675,2588.1,2587.9,0.3992]
[1726996315541,5.38231,2588.2,2587.9,0.78555]
[1726996315542,4.98411,2588.2,2587.9,0.78555]
[1726996315942,4.98411,2588.2,2587.9,0.3992]
[1726996316142,1.77631,2588.2,2587.9,0.3992]
[1726996316541,0.3807,2588.1,2587.9,0.3992]
[1726996316743,0.3882,2588.0,2587.9,0.3992]
[1726996317432,0.3882,2588.0,2587.8,1.01121402]
[1726996317631,0.3882,2588.0,2587.7,0.3993]
[1726996317836,0.38636,2587.9,2587.7,0.3993]
[1726996318439,1.77636,2587.9,2587.7,0.3993]
[1726996318639,0.38637,2587.8,2587.7,0.3993]
[1726996321533,0.38637,2587.8,2587.4,0.38642]
[1726996321750,0.38637,2587.8,2587.5,0.3974]
[1726996323451,1.39,2587.9,2587.5,0.7838]
[1726996323452,1.77636,2587.9,2587.5,0.7838]
[1726996324047,3.596,2588.0,2587.5,0.3974]
[1726996324244,0.77454,2588.0,2587.6,0.38639]
[1726996324451,0.38635,2587.9,2587.7,0.3783]
[1726996324748,0.77454,2588.0,2587.7,0.3783]
[1726996324945,0.77454,2588.0,2587.8,0.403]
[1726996325147,0.38635,2587.9,2587.8,0.403]
[1726996329344,0.77454,2588.0,2587.8,0.403]
[1726996332252,0.3882,2588.0,2587.8,0.403]
[1726996332861,2.561,2588.6,2588.3,0.38628]
[1726996333160,0.38625,2588.6,2588.3,0.38628]
[1726996333464,0.38625,2588.6,2588.2,0.3863]
[1726996333755,0.38625,2588.6,2588.3,0.3895]
[1726996333952,5.3769,2588.7,2587.9,4.21901402]
[1726996333953,1.39,2588.4,2587.9,4.21901402]
[1726996334139,1.77631,2588.2,2587.8,4.48836]
[1726996334340,0.77632,2588.1,2587.8,4.48836]
[1726996334653,3.5978,2588.1,2587.8,4.48836]
[1726996334951,3.5978,2588.1,2587.8,4.102]
[1726996335549,3.5978,2588.1,2587.9,0.38635]
[1726996336364,3.5978,2588.1,2587.8,4.48836]
[1726996336856,3.5978,2588.1,2587.8,0.38636]
[1726996339060,3.98412,2588.1,2587.8,0.38636]
[1726996339856,3.5978,2588.1,2587.8,0.38636]
[1726996342055,0.39,2588.1,2587.9,1.01121402]
[1726996342258,0.39,2588.1,2587.9,1.39756402]
[1726996342452,0.39,2588.1,2588.0,1.75491402]
[1726996343253,0.39,2588.1,2588.0,3.20248384]
[1726996343455,0.39,2588.1,2588.0,3.20248166]
[1726996343655,0.39,2588.1,2588.0,3.58885004]
[1726996343861,0.39,2588.1,2588.0,3.58886983]
[1726996344064,0.3891,2588.3,2588.0,2.19131581]
[1726996344258,0.47621,2588.9,2588.1,7.23242286]
[1726996344556,0.3796,2588.8,2588.6,0.38624]
[1726996344865,0.38618,2589.1,2588.7,3.21225314]
[1726996345056,2.15967,2589.2,2588.8,1.39883286]
[1726996345256,0.38617,2589.1,2588.8,1.39883286]
[1726996345560,2.15966,2589.2,2588.8,1.39883286]
[1726996346059,0.76966,2589.2,2588.8,1.39882286]
[1726996347254,0.3835,2589.2,2588.9,0.38619]
[1726996347455,0.3835,2589.2,2588.8,1.01261286]